bitfinex/quotes_SOLUSD_20240605
["timestamp","ask_amount","ask_price","bid_price","bid_amount"]
[1717575284447,7.23,172.78,172.75,23.149]
[1717575284766,7.23,172.78,172.75,25.2907]
[1717575285279,2.1414,172.79,172.77,6.4265]
[1717575285567,7.23,172.79,172.77,6.4265]
[1717575285871,4.2818,172.83,172.77,6.4265]
[1717575286168,7.23,172.81,172.78,2.1413]
[1717575286378,6.4221,172.84,172.78,24.5506]
[1717575286674,2.141,172.82,172.78,24.5506]
[1717575286853,2.1411,172.81,172.78,24.5506]
[1717575287245,9.3711,172.81,172.78,22.4093]
[1717575287772,2.1412,172.8,172.78,22.4093]
[1717575288142,2.1412,172.8,172.78,6.3281]
[1717575290667,2.1411,172.81,172.78,6.3281]
[1717575290870,9.3711,172.81,172.78,6.3281]
[1717575291364,2.1411,172.81,172.78,24.5055]
[1717575291688,9.3711,172.81,172.79,21.9136]
[1717575291886,7.23,172.81,172.8,2.1412]
[1717575292064,6.5002371,172.9,172.79,13.5986]
[1717575292268,6.5002371,172.9,172.81,24.0546]
[1717575292269,2.1406,172.85,172.81,24.0546]
[1717575292463,2.1407,172.84,172.81,21.9136]
[1717575292665,2.1408,172.83,172.81,21.9136]
[1717575292970,2.1407,172.84,172.81,21.9136]
[1717575293173,7.23,172.85,172.81,21.9136]
[1717575293174,2.1408,172.83,172.81,21.9136]
[1717575293375,2.1409,172.82,172.81,21.9136]
[1717575293897,9.3708,172.83,172.81,21.9136]
[1717575294271,2.1409,172.82,172.79,22.9068]
[1717575294481,35.88511329,172.89,172.78,21.7577]
[1717575294690,7.23,172.8,172.77,2.1415]
[1717575294899,7.23,172.79,172.77,2.1415]
[1717575295105,7.23,172.8,172.77,2.1415]
[1717575295389,7.23,172.8,172.77,24.0503]
[1717575295597,7.23,172.8,172.78,2.1414]
[1717575296695,7.23,172.8,172.77,24.0503]
[1717575296901,7.23,172.8,172.77,15.2884]
[1717575297083,7.23,172.81,172.78,23.7897]
[1717575297470,9.3711,172.81,172.78,21.6483]
[1717575298291,2.1411,172.81,172.78,21.6483]
[1717575298788,9.3711,172.81,172.78,21.6483]
[1717575298987,9.3711,172.81,172.78,23.7897]
[1717575299501,7.23,172.8,172.78,23.7897]
[1717575299997,2.141,172.82,172.78,23.7897]
[1717575300298,7.23,172.81,172.78,23.7897]
[1717575300609,9.3711,172.81,172.78,21.6483]
[1717575301289,7.23,172.81,172.78,23.7896]
[1717575302293,9.371,172.81,172.78,6.0372]
[1717575302883,7.23,172.8,172.78,6.0372]
[1717575303788,2.1414,172.78,172.75,2.1417]
[1717575303997,7.23,172.77,172.74,2.17780424]
[1717575304186,7.23,172.77,172.74,8.64520424]
[1717575304378,7.23,172.77,172.74,24.20930424]
[1717575304909,9.3715,172.77,172.74,24.20930424]
[1717575305075,7.23,172.76,172.74,24.20930424]
[1717575305401,2.1415,172.78,172.74,0.03600424]
[1717575305402,9.3718,172.75,172.74,0.03600424]
[1717575310783,4.2831,172.77,172.74,0.03600424]
[1717575310986,9.3718,172.75,172.74,0.03600424]
[1717575313411,2.1418,172.75,172.74,0.03600424]
[1717575313714,9.3717,172.76,172.74,0.03600424]
[1717575314398,2.1418,172.75,172.74,0.03600424]
[1717575314609,2.1416,172.77,172.74,0.03600424]
[1717575314911,9.3716,172.77,172.74,0.03600424]
[1717575315482,2.1417,172.76,172.74,0.03600424]
[1717575315811,9.3716,172.77,172.74,0.03600424]
[1717575316609,9.3716,172.77,172.74,2.17790424]
[1717575316916,2.1417,172.76,172.74,0.03600424]
[1717575317126,9.3716,172.77,172.74,0.03600424]
[1717575317616,9.3717,172.76,172.74,0.03600424]
[1717575318495,7.23,172.76,172.74,0.03600424]
[1717575319108,9.3718,172.75,172.74,0.03600424]
[1717575319300,7.23,172.75,172.74,0.03600424]
[1717575319510,9.3718,172.75,172.74,0.03600424]
[1717575320295,7.23,172.75,172.74,0.03600424]
[1717575320811,9.3718,172.75,172.74,0.03600424]
[1717575321217,2.1418,172.75,172.74,0.03600424]
[1717575321517,9.3718,172.75,172.74,0.03600424]
[1717575321887,35.1924,172.75,172.74,0.03600424]
[1717575322088,35.5324,172.75,172.74,0.03600424]
[1717575333501,21.4216,172.72,172.71,0.4]
[1717575333700,35.8816,172.72,172.71,0.4]
[1717575335625,36.2216,172.72,172.71,0.4]
[1717575337036,21.4255,172.69,172.68,0.8167452]
[1717575337344,2.1433,172.64,172.62,16.1585]
[1717575337513,7.23,172.63,172.62,16.1585]
[1717575337714,7.23,172.63,172.62,22.6082]
[1717575337925,7.23,172.63,172.62,24.7516]
[1717575338106,7.23,172.64,172.62,24.7516]
[1717575338300,7.23,172.64,172.62,22.6082]
[1717575339515,2.143,172.65,172.62,24.7516]
[1717575339716,7.23,172.64,172.62,24.7516]
[1717575341130,2.143,172.66,172.62,24.7516]
[1717575341428,2.143,172.66,172.62,24.7515]
[1717575341633,7.23,172.64,172.62,24.7515]
[1717575342225,7.23,172.64,172.62,22.6082]
[1717575342821,7.23,172.64,172.62,24.7516]
[1717575344027,2.143,172.66,172.62,24.7516]
[1717575344230,7.23,172.64,172.62,24.7516]
[1717575344634,0.34,172.69,172.61,0.4]
[1717575344812,7.23,172.62,172.61,0.4]
[1717575345147,2.1431,172.65,172.61,19.1916]
[1717575345329,6.4277,172.69,172.62,6.3793]
[1717575345517,2.1429,172.66,172.62,24.1701]
[1717575345718,12.8548,172.7,172.64,22.2951]
[1717575345923,9.3728,172.68,172.65,22.2951]
[1717575346145,4.284,172.74,172.67,15.6475]
[1717575346344,4.284,172.74,172.67,24.4378]
[1717575346345,2.1423,172.71,172.67,24.4378]
[1717575346520,7.23,172.7,172.67,22.2951]
[1717575346722,7.23,172.7,172.67,24.4378]
[1717575347048,2.1418,172.75,172.7,2.1423]
[1717575347221,9.3718,172.75,172.71,23.9966]
[1717575347421,2.1417,172.76,172.72,25.3748]
[1717575347623,7.23,172.75,172.72,25.3748]
[1717575347852,9.3718,172.75,172.72,23.2327]
[1717575348825,2.1419,172.74,172.72,23.2327]
[1717575349615,9.3718,172.75,172.72,23.2327]
[1717575349821,7.23,172.74,172.72,23.2327]
[1717575351351,7.23,172.74,172.72,25.3748]
[1717575351547,7.23,172.74,172.72,23.2327]
[1717575352337,7.23,172.74,172.72,25.3748]
[1717575353342,7.23,172.74,172.72,23.2327]
[1717575354473,2.1417,172.76,172.72,25.3748]
[1717575354675,2.1416,172.77,172.73,8.272]
[1717575354849,9.3716,172.77,172.73,24.118]
[1717575355350,9.3716,172.77,172.73,21.976]
[1717575355351,2.1419,172.74,172.73,21.976]
[1717575355547,7.23,172.75,172.73,6.13]
[1717575355755,9.3718,172.75,172.73,6.13]
[1717575356054,2.1418,172.75,172.73,6.13]
[1717575356552,6.4244,172.78,172.73,6.13]
[1717575356750,2.1418,172.75,172.73,6.13]
[1717575357469,2.1418,172.75,172.71,8.5168]
[1717575357641,2.1418,172.75,172.71,23.7377]
[1717575357844,2.1418,172.75,172.72,2.1421]
[1717575358047,9.3717,172.76,172.72,2.1421]
[1717575358755,2.1417,172.76,172.73,2.142]
[1717575359177,2.1418,172.75,172.72,8.6922]
[1717575359356,2.1417,172.76,172.73,16.0153]
[1717575359561,2.1417,172.76,172.73,22.5654]
[1717575360065,2.1417,172.76,172.73,24.7074]
[1717575360268,2.1416,172.77,172.73,24.7074]
[1717575360445,7.23,172.78,172.74,22.5654]
[1717575360651,2.1415,172.77,172.74,22.5654]
[1717575361587,2.1417,172.76,172.74,22.5654]
[1717575362981,7.23,172.78,172.74,22.5654]
[1717575363279,2.1416,172.77,172.74,22.5654]
[1717575363480,2.1414,172.78,172.74,24.7072]
[1717575363650,9.3715,172.78,172.74,24.7072]
[1717575363855,2.1415,172.78,172.74,24.7072]
[1717575364705,2.1415,172.78,172.75,2.1418]
[1717575365763,2.1415,172.78,172.74,24.7072]
[1717575365961,2.1415,172.78,172.75,6.3178]
[1717575366994,9.3713,172.79,172.75,8.4595]
[1717575367757,4.2825,172.8,172.75,8.4595]
[1717575367963,2.1414,172.78,172.75,6.3178]
[1717575368587,2.1414,172.78,172.75,8.4596]
[1717575368991,2.1414,172.78,172.75,6.3178]
[1717575369702,2.1414,172.79,172.75,24.9849]
[1717575369865,9.3714,172.79,172.75,24.9849]
[1717575371489,2.1414,172.78,172.75,24.9849]
[1717575371699,2.1414,172.78,172.75,22.8431]
[1717575372079,2.1414,172.78,172.75,24.9849]
[1717575372408,2.1414,172.78,172.75,22.8431]
[1717575372697,4.2824,172.8,172.76,21.7565]
[1717575374299,2.1412,172.8,172.77,22.6786]
[1717575374887,2.1413,172.79,172.77,22.6786]
[1717575376001,2.1412,172.8,172.77,22.6786]
[1717575376173,9.3712,172.8,172.77,22.6786]
[1717575377309,2.1412,172.8,172.77,22.6786]
[1717575377484,2.1413,172.79,172.77,6.4285]
[1717575378307,2.1412,172.8,172.77,6.4285]
[1717575378689,9.3715,172.78,172.74,2.1419]
[1717575378993,9.3718,172.75,172.72,2.1421]
[1717575379504,7.23,172.75,172.73,2.142]
[1717575379803,2.1416,172.77,172.73,2.142]
[1717575380197,2.1417,172.76,172.72,2.1421]
[1717575380580,2.1415,172.78,172.74,18.5928]
[1717575380810,2.1414,172.78,172.74,18.5928]
[1717575380994,4.2824,172.8,172.75,2.1418]
[1717575380995,2.1414,172.79,172.75,2.1418]
[1717575381184,7.23,172.77,172.74,24.9962]
[1717575381394,2.1414,172.78,172.74,24.9962]
[1717575381593,7.23,172.77,172.74,24.9962]
[1717575382109,2.1414,172.78,172.74,24.9962]
[1717575382419,9.3714,172.78,172.74,24.9962]
[1717575382708,2.1415,172.77,172.74,24.9962]
[1717575382895,2.1415,172.77,172.74,22.8544]
[1717575383210,9.3715,172.77,172.73,2.142]
[1717575383397,9.3715,172.77,172.73,23.7327]
[1717575383596,2.1415,172.77,172.73,23.7327]
[1717575383908,9.3715,172.77,172.73,23.7327]
[1717575384392,2.1417,172.76,172.73,23.7327]
[1717575384589,9.3716,172.77,172.74,22.3069]
[1717575385595,9.3716,172.77,172.74,24.4488]
[1717575386213,2.1416,172.77,172.74,24.4488]
[1717575386592,19.2701,172.81,172.75,23.617]
[1717575386905,19.2701,172.81,172.76,21.4753]
[1717575386906,2.1413,172.79,172.76,21.4753]
[1717575387091,2.1412,172.8,172.76,23.6169]
[1717575387289,2.1412,172.8,172.77,2.1415]
[1717575387818,2.1412,172.8,172.76,23.6169]
[1717575388287,9.3712,172.8,172.76,23.6169]
[1717575391293,9.3712,172.8,172.77,2.1415]
[1717575392099,7.23,172.8,172.77,2.1415]
[1717575392312,9.3712,172.8,172.77,2.1415]
[1717575392826,7.23,172.8,172.77,8.3334]
[1717575393026,2.1411,172.81,172.77,23.847]
[1717575393195,0.4,172.84,172.78,21.7055]
[1717575393521,2.141,172.81,172.78,23.8469]
[1717575393818,2.141,172.81,172.78,21.7055]
[1717575394323,2.141,172.81,172.77,2.1415]
[1717575394324,2.1412,172.8,172.76,21.5907]
[1717575394537,9.3712,172.8,172.76,23.7323]
[1717575394836,9.3713,172.79,172.75,2.1417]
[1717575395020,9.3714,172.78,172.74,2.1418]
[1717575395207,7.23,172.78,172.74,2.1418]
[1717575395408,9.3715,172.78,172.74,8.204]
[1717575395710,9.3713,172.79,172.76,6.3693]
[1717575396624,9.3713,172.79,172.76,8.5109]
[1717575396848,2.1412,172.8,172.76,8.5109]
[1717575397007,9.3712,172.8,172.76,24.5322]
[1717575397829,2.1412,172.8,172.76,24.5322]
[1717575399223,7.23,172.81,172.76,22.3906]
[1717575399416,2.1412,172.8,172.76,24.5322]
[1717575399920,9.3712,172.8,172.76,24.5322]
[1717575401236,2.1413,172.79,172.76,24.5322]
[1717575401536,2.1413,172.79,172.76,22.3906]
[1717575402355,2.1412,172.8,172.77,6.3963]
[1717575402558,7.23,172.81,172.77,6.3963]
[1717575402719,7.23,172.81,172.75,4.2835]
[1717575402720,7.23,172.81,172.78,23.8446]
[1717575402918,2.5407,172.84,172.8,2.1411]
[1717575403152,0.4,172.84,172.81,2.141]
[1717575403451,0.4,172.84,172.8,6.3963]
[1717575403452,2.5408,172.84,172.8,23.6302]
[1717575403748,0.4,172.84,172.83,2.1408]
[1717575403933,0.4,172.84,172.83,25.0576]
[1717575404120,0.4,172.84,172.83,36.9092]
[1717575404318,0.4,172.84,172.83,51.8949]
[1717575404736,0.4,172.84,172.8,120.0]
[1717575404737,0.4,172.84,172.81,2.141]
[1717575405256,0.4,172.84,172.82,2.1409]
[1717575405446,0.4,172.84,172.81,24.4962]
[1717575405751,0.4,172.84,172.82,2.1409]
[1717575406452,0.4,172.84,172.81,24.4962]
[1717575408024,0.4,172.84,172.82,2.1409]
[1717575408860,0.4,172.84,172.83,8.3284]
[1717575409151,0.4,172.84,172.83,24.093]
[1717575411138,0.4,172.84,172.83,31.493]
[1717575411344,0.4,172.84,172.83,31.663]
[1717575412164,0.4,172.84,172.83,24.263]
[1717575412366,0.4,172.84,172.83,24.093]
[1717575414779,0.4,172.84,172.83,31.323]
[1717575415452,0.4,172.84,172.83,35.6046]
[1717575417379,0.4,172.84,172.83,42.367]
[1717575418475,0.4,172.84,172.83,50.9303]
[1717575421857,0.4,172.84,172.83,70.9303]
[1717575422499,0.4,172.84,172.83,2.1408]
[1717575422782,0.4,172.84,172.82,2.1408]
[1717575423150,0.4,172.84,172.83,2.1408]
[1717575424909,0.4,172.84,172.83,13.8224]
[1717575425102,0.4,172.84,172.83,13.9924]
[1717575425284,0.4,172.84,172.83,6.7624]
[1717575425669,0.4,172.84,172.83,6.5924]
[1717575425973,0.4,172.84,172.83,13.6524]
[1717575426162,0.4,172.84,172.83,13.9924]
[1717575426996,0.4,172.84,172.83,50.4669]
[1717575428005,0.4,172.84,172.83,190.4669]
[1717575428800,0.4,172.84,172.83,70.4669]
[1717575429167,0.4,172.84,172.83,190.4669]
[1717575429882,19.613178,172.91,172.9,2.1399]
[1717575430080,19.613178,172.91,172.9,6.7598]
[1717575430604,19.613178,172.91,172.9,6.5898]
[1717575430807,19.613178,172.91,172.9,6.4198]
[1717575430984,19.613178,172.91,172.9,6.7598]
[1717575431705,19.613178,172.91,172.9,13.9898]
[1717575431908,19.613178,172.91,172.9,51.628]
[1717575434507,16.55536548,172.91,172.9,51.628]
[1717575436622,16.55536548,172.91,172.89,2.14]
[1717575436789,16.55536548,172.91,172.84,4.2813]
[1717575436790,23.78536548,172.91,172.84,4.2813]
[1717575436989,7.23,172.89,172.82,4.2817]
[1717575437207,7.23,172.87,172.84,2.1406]
[1717575437407,7.23,172.87,172.83,2.1407]
[1717575437709,7.23,172.85,172.78,120.0]
[1717575437922,7.23,172.85,172.82,2.1408]
[1717575438217,7.23,172.85,172.79,11.5126]
[1717575438218,7.23,172.83,172.78,4.2828]
[1717575438717,7.23,172.83,172.76,390.7951]
[1717575438887,2.1407,172.84,172.79,2.1412]
[1717575439086,2.1407,172.84,172.76,384.5832]
[1717575439087,7.23,172.82,172.78,2.1413]
[1717575440124,7.23,172.82,172.76,11.5132]
[1717575440294,2.1405,172.86,172.77,14.9909]
[1717575440615,7.23,172.83,172.81,2.1409]
[1717575440823,2.1405,172.86,172.81,2.1409]
[1717575441005,7.23,172.84,172.81,2.1409]
[1717575441403,7.23,172.84,172.79,2.1412]
[1717575441607,7.23,172.83,172.79,2.1412]
[1717575441816,7.23,172.82,172.77,4.2829]
[1717575442128,7.23,172.83,172.8,2.1411]
[1717575443124,7.23,172.83,172.77,11.5129]
[1717575443439,7.23,172.83,172.8,2.1411]
[1717575443741,7.23,172.84,172.81,2.141]
[1717575444032,7.23,172.84,172.79,2.1412]
[1717575444033,9.3707,172.84,172.79,2.1412]
[1717575444204,9.3708,172.83,172.79,2.1412]
[1717575444413,9.3708,172.83,172.78,2.1414]
[1717575445037,7.23,172.83,172.79,2.1412]
[1717575445603,7.23,172.82,172.79,2.1413]
[1717575446039,7.23,172.82,172.78,2.1413]
[1717575446230,7.23,172.82,172.79,2.1413]
[1717575446718,7.23,172.82,172.8,2.1412]
[1717575446917,7.23,172.82,172.79,2.1412]
[1717575447813,2.1406,172.85,172.8,2.1411]
[1717575448018,7.23,172.83,172.78,4.2828]
[1717575448336,7.23,172.83,172.8,2.1411]
[1717575450432,7.23,172.81,172.78,2.1413]
[1717575450610,7.23,172.79,172.76,2.1416]
[1717575450806,7.23,172.78,172.76,2.1416]
[1717575451131,7.23,172.78,172.73,10.7096]
[1717575451318,7.23,172.78,172.76,2.1416]
[1717575451811,7.23,172.79,172.76,2.1416]
[1717575452839,7.23,172.79,172.77,2.1415]
[1717575453016,7.23,172.8,172.77,2.1415]
[1717575453214,10.7031,172.85,172.76,10.7083]
[1717575453215,4.2813,172.85,172.76,10.7083]
[1717575453420,2.1407,172.84,172.79,2.1412]
[1717575453942,7.23,172.82,172.8,2.1411]
[1717575455051,7.23,172.82,172.8,2.1412]
[1717575455751,10.7017,172.87,172.78,4.2828]
[1717575455951,7.23,172.83,172.8,2.1411]
[1717575456341,2.1407,172.84,172.8,2.1411]
[1717575456540,7.23,172.83,172.8,2.1411]
[1717575457649,9.3708,172.83,172.79,2.1412]
[1717575457955,2.1407,172.84,172.79,2.1413]
[1717575458151,7.23,172.83,172.77,11.513]
[1717575458454,2.1401,172.89,172.84,2.1406]
[1717575458657,7.23,172.87,172.83,4.2815]
[1717575458842,7.23,172.87,172.85,2.1405]
[1717575459429,7.23,172.87,172.84,2.1406]
[1717575463547,2.14,172.9,172.85,2.1405]
[1717575464055,7.23,172.88,172.85,2.1405]
[1717575465044,7.23,172.87,172.84,2.1406]
[1717575467850,7.23,172.86,172.84,2.1406]
[1717575470967,7.23,172.86,172.85,2.1405]
[1717575471160,7.23,172.86,172.84,2.1406]
[1717575471363,7.23,172.86,172.85,2.1405]
[1717575471563,7.23,172.86,172.84,2.1406]
[1717575471754,7.23,172.86,172.85,2.1405]
[1717575472575,7.23,172.86,172.84,2.1406]
[1717575473177,7.23,172.85,172.8,4.2822]
[1717575473475,8.635,172.86,172.82,2.1409]
[1717575473678,7.23,172.83,172.82,2.1409]
[1717575474652,28.92,172.89,172.84,2.1406]
[1717575474872,7.23,172.85,172.83,2.1407]
[1717575475057,7.23,172.84,172.83,2.1407]
[1717575475252,8.3098,172.89,172.84,2.1406]
[1717575475559,7.23,172.85,172.84,2.1406]
[1717575477179,7.23,172.85,172.83,2.1407]
[1717575477354,7.23,172.84,172.83,2.1407]
[1717575478661,2.1403,172.87,172.83,2.1407]
[1717575479281,2.1402,172.88,172.83,2.1407]
[1717575481093,2.1402,172.88,172.84,2.1407]
[1717575481289,2.1402,172.88,172.83,2.1407]
[1717575482365,2.1403,172.87,172.83,2.1407]
[1717575484377,2.1402,172.88,172.84,2.1406]
[1717575485691,2.1402,172.88,172.83,2.1407]
[1717575486688,28.92,172.89,172.84,2.1406]
[1717575486889,2.1403,172.88,172.84,2.1406]
[1717575487489,2.1403,172.87,172.83,2.1407]
[1717575488474,7.23,172.86,172.84,2.1406]
[1717575488679,6.73662792,172.9,172.83,8.5632]
[1717575488874,7.23,172.87,172.86,2.1404]
[1717575489090,6.73662792,172.9,172.86,2.1404]
[1717575489287,7.23,172.87,172.86,2.1404]
[1717575489585,7.23,172.87,172.85,2.1405]
[1717575489792,7.23,172.87,172.86,2.1404]
[1717575490669,7.23,172.87,172.85,2.1405]
[1717575492291,7.23,172.87,172.86,2.1404]
[1717575492694,7.23,172.87,172.85,2.1405]
[1717575494789,7.23,172.86,172.85,2.1405]
[1717575495401,20.83506548,172.91,172.85,2.1405]
[1717575495580,7.23,172.88,172.85,2.1405]
[1717575496409,7.23,172.87,172.85,2.1405]
[1717575496773,7.23,172.88,172.85,2.1405]
[1717575497893,7.23,172.88,172.86,2.1404]
[1717575498911,7.23,172.88,172.85,2.1405]
[1717575499269,7.23,172.88,172.86,2.1404]
[1717575500871,16.55536548,172.91,172.89,2.14]
[1717575501073,7.23,172.9,172.86,6.4213]
[1717575501305,16.55536548,172.91,172.88,2.1402]
[1717575501576,7.23,172.9,172.88,2.1402]
[1717575501780,16.55536548,172.91,172.89,2.14]
[1717575501981,23.78536548,172.91,172.89,2.14]
[1717575502401,7.23,172.9,172.88,2.1401]
[1717575502590,16.55536548,172.91,172.88,2.1401]
[1717575502788,23.78536548,172.91,172.85,10.7027]
[1717575503001,23.78536548,172.91,172.88,2.1401]
[1717575503899,23.78536548,172.91,172.89,2.14]
[1717575505295,16.55536548,172.91,172.89,2.14]
[1717575505475,23.78536548,172.91,172.89,2.14]
[1717575506811,16.55536548,172.91,172.9,12.8396]
[1717575507119,16.55536548,172.91,172.9,21.3994]
[1717575509889,16.55536548,172.91,172.9,43.6648]
[1717575510090,16.55536548,172.91,172.9,44.0048]
[1717575510394,16.55536548,172.91,172.9,51.2348]
[1717575510699,16.55536548,172.91,172.9,71.2348]
[1717575522431,16.55536548,172.91,172.9,64.0048]
[1717575522729,16.55536548,172.91,172.9,71.2348]
[1717575523606,16.55536548,172.91,172.9,64.0048]
[1717575523828,16.55536548,172.91,172.9,71.2348]
[1717575524143,16.55536548,172.91,172.9,21.3994]
[1717575524305,16.55536548,172.91,172.9,6.4198]
[1717575524511,16.55536548,172.91,172.9,2.1399]
[1717575524723,16.55536548,172.91,172.87,7.23]
[1717575524724,16.55536548,172.91,172.87,4.2804]
[1717575525032,23.78536548,172.91,172.89,2.14]
[1717575525200,23.78536548,172.91,172.89,2.1399]
[1717575525527,16.55536548,172.91,172.9,2.1399]
[1717575529328,23.78536548,172.91,172.89,2.1399]
[1717575530122,7.23,172.9,172.89,2.1399]
[1717575531239,16.55536548,172.91,172.89,2.1399]
[1717575531240,16.55536548,172.91,172.9,2.1399]
[1717575531444,16.55536548,172.91,172.9,6.5898]
[1717575531657,16.55536548,172.91,172.9,6.4198]
[1717575532144,16.55536548,172.91,172.9,2.1399]
[1717575534839,16.55536548,172.91,172.9,6.4198]
[1717575535146,16.55536548,172.91,172.9,170.3839]
[1717575535462,16.55536548,172.91,172.9,190.5539]
[1717575536166,16.55536548,172.91,172.9,183.3239]
[1717575536326,16.55536548,172.91,172.9,190.5539]
[1717575537328,16.55536548,172.91,172.9,183.3239]
[1717575537655,16.55536548,172.91,172.9,190.5539]
[1717575537947,16.55536548,172.91,172.9,183.3239]
[1717575538151,16.55536548,172.91,172.9,190.5539]
[1717575541248,16.55536548,172.91,172.9,183.3239]
[1717575541748,16.55536548,172.91,172.9,190.5539]
[1717575543825,16.55536548,172.91,172.9,161.7394]
[1717575544035,16.55536548,172.91,172.9,168.9694]
[1717575546965,16.55536548,172.91,172.9,191.2308]
[1717575547461,16.55536548,172.91,172.9,168.9694]
[1717575547868,16.55536548,172.91,172.9,161.7394]
[1717575548040,16.55536548,172.91,172.9,168.9694]
[1717575548400,16.55536548,172.91,172.9,191.2308]
[1717575549569,16.55536548,172.91,172.9,184.0008]
[1717575549756,16.55536548,172.91,172.9,191.2308]
[1717575550487,16.55536548,172.91,172.9,41.3994]
[1717575550776,16.55536548,172.91,172.9,21.3994]
[1717575550934,16.55536548,172.91,172.86,4.2807]
[1717575551140,7.23,172.9,172.89,2.1399]
[1717575551746,23.78536548,172.91,172.9,2.1399]
[1717575552469,16.55536548,172.91,172.9,2.1399]
[1717575559974,16.55536548,172.91,172.9,6.4198]
[1717575561156,16.55536548,172.91,172.9,2.1399]
[1717575564280,16.55536548,172.91,172.86,4.2807]
[1717575564586,7.23,172.88,172.87,2.1402]
[1717575565991,7.23,172.89,172.87,2.1402]
[1717575566170,7.23,172.89,172.85,10.7027]
[1717575566558,7.23,172.89,172.87,2.1402]
[1717575567388,7.23,172.89,172.88,2.1402]
[1717575567590,16.55536548,172.91,172.88,2.1402]
[1717575567772,7.23,172.9,172.88,2.1402]
[1717575567960,7.23,172.9,172.86,4.2808]
[1717575567961,7.23,172.9,172.89,2.14]
[1717575568365,16.55536548,172.91,172.89,2.14]
[1717575568593,23.78536548,172.91,172.89,2.14]
[1717575569167,16.55536548,172.91,172.9,2.1399]
[1717575582988,16.55536548,172.91,172.9,6.4198]
[1717575583411,16.55536548,172.91,172.9,21.3994]
[1717575583740,16.55536548,172.91,172.9,28.9694]
[1717575584934,16.55536548,172.91,172.9,55.4109]
[1717575585105,16.55536548,172.91,172.9,71.3119]
[1717575590397,16.55536548,172.91,172.9,191.3119]
[1717575591997,16.55536548,172.91,172.9,184.0819]
[1717575592198,16.55536548,172.91,172.9,191.3119]
[1717575605712,16.55536548,172.91,172.9,161.7394]
[1717575605911,16.55536548,172.91,172.9,21.3994]
[1717575608315,16.55536548,172.91,172.9,21.7394]
[1717575613410,16.55536548,172.91,172.9,148.9694]
[1717575623366,16.55536548,172.91,172.9,28.9694]
[1717575623740,16.55536548,172.91,172.9,21.7394]
[1717575627671,16.55536548,172.91,172.9,28.9694]
[1717575632285,16.55536548,172.91,172.9,28.9694]
[1717575639281,16.55536548,172.91,172.9,21.7394]
[1717575639885,16.55536548,172.91,172.9,21.3994]
[1717575640082,30.27106548,172.91,172.9,2.1399]
[1717575640397,30.27106548,172.91,172.89,2.14]
[1717575640606,23.04106548,172.91,172.9,2.1399]
[1717575640779,30.27106548,172.91,172.89,2.14]
[1717575640973,7.23,172.9,172.89,2.14]
[1717575641876,30.27106548,172.91,172.9,2.1399]
[1717575642377,30.27106548,172.91,172.87,14.9818]
[1717575642583,30.27106548,172.91,172.9,2.1399]
[1717575642976,23.04106548,172.91,172.9,2.1399]
[1717575643609,16.55536548,172.91,172.9,2.1399]
[1717575644392,22.56956548,172.91,172.89,2.14]
[1717575644572,29.79956548,172.91,172.9,2.1399]
[1717575644772,22.56956548,172.91,172.9,2.1399]